fUST/lending_fUST_20250220
["ID","MTS","AMOUNT","RATE_DAILY","PERIOD"]
[353744189,1740004247871,-500.0,0.0001452,2]
[353744190,1740004247881,-500.0,0.0001452,2]
[353744191,1740004247892,-1061.25,0.0001452,2]
[353744192,1740004247902,-551.43,0.0001452,2]
[353744193,1740004247911,-500.0,0.0001452,2]
[353744194,1740004247921,-500.0,0.0001452,2]
[353744195,1740004247930,-500.0,0.0001452,2]
[353744196,1740004247940,-13702.54,0.0001452,2]
[353744197,1740004247949,-703.15,0.0001452,2]
[353744198,1740004247959,-519.65,0.0001452,2]
[353744199,1740004247968,-774.13663208,0.0001452,2]
[353744200,1740004248010,-496.33725965,0.0001452,2]
[353744201,1740004248169,-619.0,0.00014109,2]
[353744202,1740004248179,-1216.81,0.00014109,2]
[353744203,1740004248188,-188.014068,0.00014191,2]
[353744204,1740004248200,-1028.795932,0.00014191,2]
[353744205,1740004248209,-619.0,0.00014191,2]
[353744206,1740004248219,-1216.81,0.00014273,2]
[353744207,1740004248231,-619.0,0.00014273,2]
[353744208,1740004248241,-152.0,0.00014314,2]
[353744209,1740004248251,-1216.81,0.00014356,2]
[353744210,1740004248260,-619.0,0.00014356,2]
[353744211,1740004248269,-1216.81,0.00014438,2]
[353744212,1740004248279,-619.0,0.00014438,2]
[353744213,1740004248288,-3799.88610827,0.0001452,2]
[353744214,1740004248298,-611.51,0.0001452,2]
[353744215,1740004248308,-500.0,0.0001452,2]
[353744216,1740004248318,-510.56,0.0001452,2]
[353744217,1740004248327,-500.0,0.0001452,2]
[353744218,1740004248337,-793.99,0.0001452,2]
[353744219,1740004248347,-641.61,0.0001452,2]
[353744220,1740004248356,-1007.9,0.0001452,2]
[353744221,1740004248365,-1012.31,0.0001452,2]
[353744222,1740004248375,-1753.26,0.0001452,2]
[353744223,1740004248384,-500.0,0.0001452,2]
[353744224,1740004248394,-639.71,0.0001452,2]
[353744225,1740004248404,-500.0,0.0001452,2]
[353744226,1740004248414,-1266.04,0.0001452,2]
[353744227,1740004248424,-602.55,0.0001452,2]
[353744228,1740004248434,-699.93,0.0001452,2]
[353744229,1740004248443,-500.0,0.0001452,2]
[353744230,1740004248453,-1363.5,0.0001452,2]
[353744231,1740004248463,-500.0,0.0001452,2]
[353744232,1740004248472,-597.13,0.0001452,2]
[353744233,1740004248482,-4687.57,0.0001452,2]
[353744234,1740004248491,-4927.58,0.0001452,2]
[353744235,1740004248499,-500.0,0.0001452,2]
[353744236,1740004248509,-507.82,0.0001452,2]
[353744237,1740004248519,-1389.2,0.0001452,2]
[353744238,1740004248529,-846.0,0.0001452,2]
[353744239,1740004248539,-1216.81,0.0001452,2]
[353744240,1740004248549,-619.0,0.0001452,2]
[353744241,1740004248559,-6592.22575797,0.00014537,2]
[353744243,1740004812130,164.299048,9.041e-05,2]
[353744256,1740005432079,-4465.3402149,0.00012714,2]
[353744258,1740005432088,-250.0,0.00012735,2]
[353744260,1740005432098,-700.0,0.00013068,2]
[353744262,1740005432108,-300.0,0.00013672,2]
[353744264,1740005432117,-500.0,0.00013673,2]
[353744266,1740005432127,-500.0,0.00013673,2]
[353744267,1740005432136,-500.0,0.00013673,2]
[353744268,1740005432145,-500.0,0.00013673,2]
[353744270,1740005432154,-346.303716,0.00013673,2]
[353744272,1740005432164,-500.0,0.00013673,2]
[353744274,1740005432174,-500.0,0.00013673,2]
[353744276,1740005432183,-159.20644234,0.00013673,2]
[353744278,1740005432194,-500.0,0.00013697,2]
[353744280,1740005432203,-500.0,0.00013697,2]
[353744282,1740005432215,-500.0,0.00013697,2]
[353744283,1740005432225,-500.0,0.00013697,2]
[353744285,1740005432235,-500.0,0.00013697,2]
[353744286,1740005432246,-500.0,0.00013697,2]
[353744287,1740005432255,-500.0,0.00013697,2]
[353744288,1740005432264,-500.0,0.00013697,2]
[353744289,1740005432274,-500.0,0.00013697,2]
[353744290,1740005432284,-500.0,0.00013697,2]
[353744291,1740005432293,-500.0,0.00013697,2]
[353744292,1740005432303,-500.0,0.00013697,2]
[353744293,1740005432312,-500.0,0.00013697,2]
[353744294,1740005432322,-500.0,0.00013697,2]
[353744295,1740005432332,-426.14910576,0.00013697,2]
[353744296,1740005432344,-73.85089424,0.00013697,2]
[353744297,1740005432354,-584.18320766,0.00013697,2]
[353744298,1740005432363,-359.50535132,0.00013697,2]
[353744299,1740005432373,-500.0,0.00013697,2]
[353744300,1740005432382,-637.30964223,0.00013697,2]
[353744301,1740005432392,-500.0,0.00013697,2]
[353744302,1740005432401,-500.0,0.00013697,2]
[353744303,1740005432410,-500.0,0.00013697,2]
[353744304,1740005432419,-500.0,0.00013697,2]
[353744305,1740005432428,-500.0,0.00013697,2]
[353744306,1740005432438,-500.0,0.00013697,2]
[353744307,1740005432448,-500.0,0.00013698,2]
[353744308,1740005432457,-500.0,0.00013698,2]
[353744309,1740005432467,-500.0,0.00013698,2]
[353744310,1740005432476,-500.0,0.00013698,2]
[353744311,1740005432486,-500.0,0.00013698,2]
[353744312,1740005432496,-500.0,0.00013698,2]
[353744313,1740005432506,-500.0,0.00013698,2]
[353744314,1740005432516,-500.0,0.00013698,2]
[353744315,1740005432526,-500.0,0.00013698,2]
[353744316,1740005432536,-297.5,0.00013698,2]
[353744317,1740005432546,-500.0,0.00013698,2]
[353744318,1740005432556,-500.0,0.00013698,2]
[353744319,1740005432566,-500.0,0.00013698,2]
[353744320,1740005432576,-555.39,0.00013698,2]
[353744321,1740005432586,-500.0,0.00013698,2]
[353744322,1740005432595,-500.0,0.00013698,2]
[353744323,1740005432605,-500.0,0.00013698,2]
[353744324,1740005432614,-500.0,0.00013698,2]
[353744325,1740005432624,-500.0,0.00013698,2]
[353744326,1740005432634,-500.0,0.00013698,2]
[353744327,1740005432643,-500.0,0.00013698,2]
[353744328,1740005432653,-500.0,0.00013698,2]
[353744329,1740005432663,-500.0,0.00013698,2]
[353744330,1740005432673,-500.0,0.00013698,2]
[353744331,1740005432682,-500.0,0.00013698,2]
[353744332,1740005432692,-500.0,0.00013698,2]
[353744333,1740005432701,-500.0,0.00013698,2]
[353744334,1740005432712,-500.0,0.00013698,2]
[353744335,1740005432721,-500.0,0.00013698,2]
[353744336,1740005432731,-500.0,0.00013698,2]
[353744337,1740005432742,-500.0,0.00013698,2]
[353744338,1740005432752,-500.0,0.00013698,2]
[353744339,1740005432761,-500.0,0.00013698,2]
[353744340,1740005432771,-500.0,0.00013698,2]
[353744341,1740005432781,-500.0,0.00013698,2]
[353744342,1740005432790,-500.0,0.00013698,2]
[353744343,1740005432800,-500.0,0.00013698,2]
[353744344,1740005432810,-500.0,0.00013698,2]
[353744345,1740005432819,-503.43455033,0.00013698,2]
[353744346,1740005432829,-500.0,0.00013698,2]
[353744347,1740005432838,-500.0,0.00013698,2]
[353744348,1740005432847,-168.86,0.00013698,2]
[353744349,1740005432857,-500.0,0.00013698,2]
[353744350,1740005432866,-500.0,0.00013698,2]
[353744351,1740005432876,-500.0,0.00013698,2]
[353744352,1740005432885,-500.0,0.00013698,2]
[353744353,1740005432895,-500.0,0.00013698,2]
[353744354,1740005432904,-500.0,0.00013698,2]
[353744355,1740005432913,-422.76172778,0.00013698,2]
[353744356,1740005432927,-77.23827222,0.00013698,2]
[353744357,1740005432936,-500.0,0.00013698,2]
[353744358,1740005432945,-626.74415443,0.00013698,2]
[353744359,1740005432955,-500.0,0.00013698,2]
[353744360,1740005432964,-515.13833456,0.00013698,2]
[353744361,1740005432974,-349.0060592,0.00013698,2]
[353744362,1740005432993,-150.9939408,0.00013698,2]
[353744363,1740005433003,-223.87515938,0.00013698,2]
[353744364,1740005433014,-276.12484062,0.00013698,2]
[353744365,1740005433024,-500.0,0.00013698,2]
[353744366,1740005433034,-305.26796582,0.00013698,2]
[353744367,1740005433045,-194.73203418,0.00013698,2]
[353744368,1740005433055,-500.0,0.00013698,2]
[353744369,1740005433065,-500.0,0.00013698,2]
[353744370,1740005433074,-500.0,0.00013698,2]
[353744371,1740005433083,-500.0,0.00013698,2]
[353744372,1740005433093,-500.0,0.00013698,2]
[353744373,1740005433103,-500.0,0.00013698,2]
[353744374,1740005433112,-505.14873693,0.00013698,2]
[353744375,1740005433122,-500.0,0.00013698,2]
[353744376,1740005433131,-152.30703599,0.00013698,2]
[353744377,1740005433140,-605.88,0.00013698,2]
[353744378,1740005433150,-500.0,0.00013698,2]
[353744379,1740005433159,-500.0,0.00013698,2]
[353744380,1740005433168,-500.0,0.00013698,2]
[353744381,1740005433177,-500.0,0.00013698,2]
[353744382,1740005433187,-500.0,0.00013698,2]
[353744383,1740005433196,-507.80469073,0.00013698,2]
[353744384,1740005433207,-500.0,0.00013698,2]
[353744385,1740005433216,-500.0,0.00013698,2]
[353744386,1740005433226,-500.0,0.00013698,2]
[353744387,1740005433235,-500.0,0.00013698,2]
[353744388,1740005433247,-500.0,0.00013698,2]
[353744389,1740005433257,-514.01201223,0.00013698,2]
[353744390,1740005433267,-500.0,0.00013698,2]
[353744391,1740005433278,-500.0,0.00013698,2]
[353744392,1740005433289,-500.0,0.00013698,2]
[353744393,1740005433299,-500.0,0.00013698,2]
[353744394,1740005433309,-470.0,0.00013698,2]
[353744395,1740005433319,-500.0,0.00013698,2]
[353744396,1740005433328,-77.77753478,0.00013698,2]
[353744397,1740005433346,-422.22246522,0.00013698,2]
[353744398,1740005433356,-500.0,0.00013698,2]
[353744399,1740005433365,-500.0,0.00013698,2]
[353744400,1740005433375,-1008.99,0.00013698,2]
[353744401,1740005433384,-500.0,0.00013698,2]
[353744402,1740005433394,-500.0,0.00013698,2]
[353744403,1740005433404,-500.0,0.00013698,2]
[353744404,1740005433413,-234.68879614,0.00013698,2]
[353744405,1740005433423,-500.0,0.00013698,2]
[353744406,1740005433432,-500.0,0.00013698,2]
[353744407,1740005433442,-500.0,0.00013698,2]
[353744408,1740005433451,-500.0,0.00013698,2]
[353744409,1740005433461,-500.0,0.00013698,2]
[353744410,1740005433471,-500.0,0.00013698,2]
[353744411,1740005433480,-500.0,0.00013698,2]
[353744412,1740005433490,-500.0,0.00013698,2]
[353744413,1740005433499,-500.0,0.00013698,2]
[353744414,1740005433508,-500.0,0.00013698,2]
[353744415,1740005433518,-500.0,0.00013698,2]
[353744416,1740005433527,-481.91579717,0.00013698,2]
[353744417,1740005433537,-500.0,0.00013698,2]
[353744418,1740005433546,-500.0,0.00013698,2]
[353744419,1740005433556,-500.0,0.00013698,2]
[353744420,1740005433566,-500.0,0.00013698,2]
[353744421,1740005433575,-1182.16,0.00013698,2]
[353744422,1740005433585,-500.0,0.00013698,2]
[353744423,1740005433594,-191.19851213,0.00013698,2]
[353744424,1740005433607,-308.80148787,0.00013698,2]
[353744425,1740005433617,-500.0,0.00013698,2]
[353744426,1740005433626,-190.90518133,0.00013698,2]
[353744443,1740005438044,-86.11512125,0.00013698,2]
[353744444,1740005438054,-500.0,0.00013698,2]
[353744445,1740005438064,-500.0,0.00013698,2]
[353744446,1740005438074,-500.0,0.00013698,2]
[353744447,1740005438084,-500.0,0.00013698,2]
[353744448,1740005438094,-500.0,0.00013698,2]
[353744449,1740005438103,-500.0,0.00013698,2]
[353744450,1740005438113,-608.49,0.00013698,2]
[353744451,1740005438123,-121.19085075,0.00013698,2]
[353744452,1740005438135,-378.80914925,0.00013698,2]
[353744453,1740005438145,-532.05,0.00013698,2]
[353744454,1740005438155,-500.0,0.00013698,2]
[353744455,1740005438164,-500.0,0.00013698,2]
[353744456,1740005438174,-500.0,0.00013698,2]
[353744457,1740005438184,-500.0,0.00013698,2]
[353744458,1740005438193,-500.0,0.00013698,2]
[353744460,1740005438207,-500.0,0.00013698,2]
[353744462,1740005438219,-586.66,0.00013698,2]
[353744464,1740005438228,-500.0,0.00013698,2]
[353744466,1740005438238,-500.0,0.00013698,2]
[353744468,1740005438249,-500.0,0.00013698,2]
[353744470,1740005438259,-500.0,0.00013698,2]
[353744471,1740005438268,-500.0,0.00013698,2]
[353744472,1740005438278,-500.0,0.00013698,2]
[353744473,1740005438287,-500.0,0.00013698,2]
[353744474,1740005438298,-500.0,0.00013698,2]
[353744475,1740005438317,-500.0,0.00013698,2]
[353744476,1740005438329,-604.08085075,0.00013698,2]
[353744477,1740005438343,-228.15914925,0.00013698,2]
[353744478,1740005438353,-271.84085075,0.00013698,2]
[353744479,1740005438365,-228.15914925,0.00013698,2]
[353744480,1740005438375,-500.0,0.00013698,2]
[353744481,1740005438386,-500.0,0.00013698,2]
[353744482,1740005438396,-500.0,0.00013698,2]
[353744483,1740005438405,-532.23466181,0.00013698,2]
[353744484,1740005438415,-701.87,0.00013698,2]
[353744485,1740005438425,-500.0,0.00013698,2]
[353744486,1740005438434,-500.0,0.00013698,2]
[353744487,1740005438444,-500.0,0.00013698,2]
[353744488,1740005438455,-14576.82,0.00013698,2]
[353744489,1740005438466,-500.0,0.00013698,2]
[353744490,1740005438476,-500.0,0.00013698,2]
[353744491,1740005438486,-255.3083535,0.00013698,2]
[353744492,1740005438496,-1143.58,0.00013698,2]
[353744493,1740005438505,-501.47660146,0.00013698,2]
[353744494,1740005438516,-500.0,0.00013698,2]
[353744495,1740005438525,-500.0,0.00013698,2]
[353744496,1740005438535,-638.33,0.00013698,2]
[353744497,1740005438545,-500.0,0.00013698,2]
[353744498,1740005438555,-2018.83,0.00013698,2]
[353744499,1740005438565,-501.01023434,0.00013698,2]
[353744500,1740005438575,-500.0,0.00013698,2]
[353744501,1740005438585,-500.0,0.00013698,2]
[353744502,1740005438595,-500.0,0.00013698,2]
[353744503,1740005438604,-500.0,0.00013698,2]
[353744504,1740005438615,-500.0,0.00013698,2]
[353744505,1740005438624,-500.0,0.00013698,2]
[353744506,1740005438634,-500.0,0.00013698,2]
[353744507,1740005438644,-500.0,0.00013698,2]
[353744508,1740005438654,-515.01671561,0.00013698,2]
[353744509,1740005438664,-500.0,0.00013698,2]
[353744510,1740005438673,-5593.86,0.00013698,2]
[353744511,1740005438683,-500.0,0.00013698,2]
[353744512,1740005438693,-500.0,0.00013698,2]
[353744513,1740005438703,-500.0,0.00013698,2]
[353744514,1740005438712,-500.0,0.00013698,2]
[353744515,1740005438722,-500.0,0.00013698,2]
[353744516,1740005438732,-500.0,0.00013698,2]
[353744517,1740005438742,-1469.25,0.00013698,2]
[353744518,1740005438938,-500.0,0.00013698,2]
[353744519,1740005438948,-500.0,0.00013698,2]
[353744520,1740005438958,-500.0,0.00013698,2]
[353744521,1740005438969,-505.819076,0.00013698,2]
[353744522,1740005438979,-1323.94,0.00013698,2]
[353744523,1740005438988,-500.0,0.00013698,2]
[353744524,1740005438998,-500.0,0.00013698,2]
[353744525,1740005439007,-343.27878826,0.00013698,2]
[353744526,1740005439149,-265.67121174,0.00013698,2]
[353744527,1740005439159,-6.40878826,0.00013698,2]
[353744528,1740005439176,-850.86121174,0.00013698,2]
[353744529,1740005439186,-500.0,0.00013698,2]
[353744530,1740005439195,-500.0,0.00013698,2]
[353744531,1740005439206,-259.71496977,0.00013698,2]
[353744532,1740005439220,-240.28503023,0.00013698,2]
[353744533,1740005439230,-500.0,0.00013698,2]
[353744534,1740005439239,-500.0,0.00013698,2]
[353744535,1740005439250,-273.45368912,0.00013698,2]
[353744536,1740005439259,-500.0,0.00013698,2]
[353744537,1740005439269,-785.29,0.00013698,2]
[353744538,1740005439278,-500.0,0.00013698,2]
[353744539,1740005439290,-500.0,0.00013698,2]
[353744540,1740005439300,-500.0,0.00013698,2]
[353744541,1740005439310,-500.0,0.00013698,2]
[353744542,1740005439319,-559.44766365,0.00013698,2]
[353744543,1740005439329,-500.0,0.00013698,2]
[353744544,1740005439339,-549.33162169,0.00013698,2]
[353744545,1740005439348,-500.0,0.00013698,2]
[353744546,1740005439358,-500.0,0.00013698,2]
[353744547,1740005439368,-500.0,0.00013698,2]
[353744548,1740005439378,-152.12430685,0.00013698,2]
[353744549,1740005439405,-354.6506348,0.00013698,2]
[353744550,1740005439415,-500.0,0.00013698,2]
[353744551,1740005439424,-145.3493652,0.00013698,2]
[353744552,1740005439436,-354.6506348,0.00013698,2]
[353744553,1740005439445,-500.0,0.00013698,2]
[353744554,1740005439456,-509.6,0.00013698,2]
[353744555,1740005439466,-500.0,0.00013698,2]
[353744556,1740005439476,-500.0,0.00013698,2]
[353744557,1740005439486,-500.0,0.00013698,2]
[353744558,1740005439496,-500.0,0.00013698,2]
[353744559,1740005439505,-500.0,0.00013698,2]
[353744560,1740005439515,-373.57422704,0.00013698,2]
[353744561,1740005439524,-500.0,0.00013698,2]
[353744562,1740005439534,-536.48,0.00013698,2]
[353744563,1740005439544,-500.0,0.00013698,2]
[353744564,1740005439553,-747.08,0.00013698,2]
[353744565,1740005439563,-500.0,0.00013698,2]
[353744566,1740005439572,-500.0,0.00013698,2]
[353744567,1740005439582,-324.54125621,0.00013698,2]
[353744570,1740005441944,-175.45874379,0.00013698,2]
[353744571,1740005441954,-500.0,0.00013698,2]
[353744572,1740005441964,-500.0,0.00013698,2]
[353744573,1740005441974,-500.0,0.00013698,2]
[353744574,1740005441983,-500.0,0.00013698,2]
[353744575,1740005441993,-500.0,0.00013698,2]
[353744576,1740005442002,-500.0,0.00013698,2]
[353744577,1740005442012,-500.0,0.00013698,2]
[353744578,1740005442021,-500.0,0.00013698,2]
[353744579,1740005442030,-500.0,0.00013698,2]
[353744580,1740005442040,-500.0,0.00013698,2]
[353744581,1740005442049,-1736.39,0.00013698,2]
[353744582,1740005442058,-500.0,0.00013698,2]
[353744583,1740005442068,-500.0,0.00013698,2]
[353744584,1740005442077,-514.98,0.00013698,2]
[353744585,1740005442087,-500.0,0.00013698,2]
[353744586,1740005442097,-500.0,0.00013698,2]
[353744587,1740005442106,-500.0,0.00013698,2]
[353744588,1740005442115,-500.0,0.00013698,2]
[353744590,1740005442125,-555.79296352,0.00013698,2]
[353744592,1740005442134,-500.0,0.00013698,2]
[353744593,1740005442143,-265.36073785,0.00013698,2]
[353744594,1740005442153,-500.0,0.00013698,2]
[353744595,1740005442163,-500.0,0.00013698,2]
[353744596,1740005442172,-500.0,0.00013698,2]
[353744597,1740005442181,-500.0,0.00013698,2]
[353744598,1740005442190,-500.0,0.00013698,2]
[353744599,1740005442200,-690.59,0.00013698,2]
[353744600,1740005442214,-500.0,0.00013698,2]
[353744601,1740005442224,-500.0,0.00013698,2]
[353744602,1740005442233,-500.0,0.00013698,2]
[353744603,1740005442242,-500.0,0.00013698,2]
[353744604,1740005442252,-500.0,0.00013698,2]
[353744605,1740005442262,-500.0,0.00013698,2]
[353744606,1740005442271,-500.0,0.00013698,2]
[353744607,1740005442281,-500.0,0.00013698,2]
[353744608,1740005442291,-6196.89,0.00013698,2]
[353744609,1740005442301,-605.93734743,0.00013698,2]
[353744610,1740005442310,-500.0,0.00013698,2]
[353744611,1740005442320,-4026.5,0.00013698,2]
[353744612,1740005442329,-1156.63,0.00013698,2]
[353744613,1740005442339,-500.0,0.00013698,2]
[353744614,1740005442348,-500.0,0.00013698,2]
[353744615,1740005442357,-500.0,0.00013698,2]
[353744616,1740005442367,-500.0,0.00013698,2]
[353744617,1740005442377,-608.4,0.00013698,2]
[353744618,1740005442387,-500.0,0.00013698,2]
[353744619,1740005442396,-852.57,0.00013698,2]
[353744620,1740005442406,-1383.77,0.00013698,2]
[353744621,1740005442415,-500.0,0.00013698,2]
[353744622,1740005442425,-500.0,0.00013698,2]
[353744623,1740005442434,-499.17932562,0.00013698,2]
[353744624,1740005442444,-500.0,0.00013698,2]
[353744625,1740005442453,-1141.89,0.00013698,2]
[353744626,1740005442463,-168.39,0.00013699,2]
[353744627,1740005442473,-168.39,0.00013699,2]
[353744628,1740005442483,-168.39,0.00013699,2]
[353744629,1740005442493,-168.39,0.00013699,2]
[353744630,1740005442502,-168.39,0.00013699,2]
[353744631,1740005442511,-168.39335212,0.00013699,2]
[353744632,1740005442521,-313.357664,0.00013699,2]
[353744633,1740005442531,-401.49274,0.00013699,2]
[353744634,1740005442540,-572.6228819,0.00013699,2]
[353744635,1740005442550,-500.0,0.00013699,2]
[353744636,1740005442560,-217.42233555,0.00013779,2]
[353744637,1740005442571,-500.0,0.00013779,2]
[353744638,1740005442581,-581.30936635,0.00013779,2]
[353744639,1740005442590,-500.0,0.0001378,2]
[353744640,1740005442600,-500.0,0.0001378,2]
[353744641,1740005442610,-500.0,0.0001378,2]
[353744642,1740005442619,-357.48115366,0.0001378,2]
[353744644,1740005442629,-500.0,0.0001378,2]
[353744646,1740005442638,-500.0,0.0001378,2]
[353744649,1740005442648,-500.0,0.0001378,2]
[353744652,1740005442658,-500.0,0.0001378,2]
[353744654,1740005442667,-500.0,0.0001378,2]
[353744656,1740005442676,-500.0,0.0001378,2]
[353744658,1740005442685,-500.0,0.0001378,2]
[353744660,1740005442694,-500.0,0.0001378,2]
[353744661,1740005442703,-500.0,0.0001378,2]
[353744662,1740005442712,-500.0,0.0001378,2]
[353744663,1740005442722,-500.0,0.0001378,2]
[353744664,1740005442731,-500.0,0.0001378,2]
[353744666,1740005442740,-500.0,0.0001378,2]
[353744667,1740005442749,-500.0,0.0001378,2]
[353744668,1740005442759,-500.0,0.0001378,2]
[353744669,1740005442768,-500.0,0.0001378,2]
[353744671,1740005442777,-500.0,0.0001378,2]
[353744673,1740005442787,-500.0,0.0001378,2]
[353744675,1740005442796,-500.0,0.0001378,2]
[353744677,1740005442807,-500.0,0.0001378,2]
[353744679,1740005442816,-500.0,0.0001378,2]
[353744680,1740005442825,-295.32,0.0001378,2]
[353744681,1740005442834,-500.0,0.0001378,2]
[353744682,1740005442844,-500.0,0.0001378,2]
[353744683,1740005442853,-500.0,0.0001378,2]
[353744684,1740005442862,-500.0,0.0001378,2]
[353744685,1740005442872,-500.0,0.0001378,2]
[353744686,1740005442881,-500.0,0.0001378,2]
[353744687,1740005442890,-500.0,0.0001378,2]
[353744688,1740005442899,-500.0,0.0001378,2]
[353744689,1740005442909,-500.0,0.0001378,2]
[353744690,1740005442918,-500.0,0.0001378,2]
[353744691,1740005442927,-500.0,0.0001378,2]
[353744692,1740005442936,-500.0,0.0001378,2]
[353744693,1740005442945,-545.8278083,0.0001378,2]
[353744694,1740005442955,-249.81073906,0.0001378,2]
[353744695,1740005442964,-549.31818159,0.0001378,2]
[353744696,1740005442974,-500.0,0.0001378,2]
[353744697,1740005442983,-500.0,0.0001378,2]
[353744698,1740005442993,-500.0,0.0001378,2]
[353744699,1740005443002,-500.0,0.0001378,2]
[353744700,1740005443011,-500.0,0.0001378,2]
[353744701,1740005443021,-500.0,0.0001378,2]
[353744702,1740005443030,-608.49,0.0001378,2]
[353744703,1740005443040,-532.05,0.0001378,2]
[353744704,1740005443049,-500.0,0.0001378,2]
[353744705,1740005443058,-500.0,0.0001378,2]
[353744706,1740005443068,-500.0,0.0001378,2]
[353744707,1740005443077,-586.66,0.0001378,2]
[353744708,1740005443087,-645.14,0.0001378,2]
[353744709,1740005443096,-500.0,0.0001378,2]
[353744710,1740005443105,-500.0,0.0001378,2]
[353744711,1740005443116,-500.0,0.0001378,2]
[353744712,1740005443125,-500.0,0.0001378,2]
[353744713,1740005443135,-832.24,0.0001378,2]
[353744714,1740005443144,-500.0,0.0001378,2]
[353744715,1740005443153,-701.87,0.0001378,2]
[353744716,1740005443163,-14576.82,0.0001378,2]
[353744717,1740005443172,-1143.58,0.0001378,2]
[353744718,1740005443181,-500.0,0.0001378,2]
[353744719,1740005443192,-638.33,0.0001378,2]
[353744720,1740005443202,-2018.83,0.0001378,2]
[353744721,1740005443214,-500.0,0.0001378,2]
[353744722,1740005443223,-500.0,0.0001378,2]
[353744723,1740005443233,-500.0,0.0001378,2]
[353744724,1740005443243,-500.0,0.0001378,2]
[353744725,1740005443252,-500.0,0.0001378,2]
[353744726,1740005443261,-5593.86,0.0001378,2]
[353744727,1740005443270,-500.0,0.0001378,2]
[353744728,1740005443280,-500.0,0.0001378,2]
[353744729,1740005443291,-500.0,0.0001378,2]
[353744730,1740005443301,-500.0,0.0001378,2]
[353744731,1740005443311,-1469.25,0.0001378,2]
[353744732,1740005443321,-500.0,0.0001378,2]
[353744733,1740005443330,-1323.94,0.0001378,2]
[353744734,1740005443339,-608.95,0.0001378,2]
[353744735,1740005443349,-857.27,0.0001378,2]
[353744736,1740005443359,-500.0,0.0001378,2]
[353744737,1740005443369,-500.0,0.0001378,2]
[353744738,1740005443378,-500.0,0.0001378,2]
[353744739,1740005443388,-785.29,0.0001378,2]
[353744740,1740005443397,-500.0,0.0001378,2]
[353744741,1740005443407,-500.0,0.0001378,2]
[353744742,1740005443417,-500.0,0.0001378,2]
[353744743,1740005443426,-271.22088126,0.0001378,2]
[353744744,1740005443436,-500.0,0.0001378,2]
[353744745,1740005443446,-509.6,0.0001378,2]
[353744746,1740005443455,-500.0,0.0001378,2]
[353744747,1740005443464,-500.0,0.0001378,2]
[353744748,1740005443474,-500.0,0.0001378,2]
[353744749,1740005443482,-500.0,0.0001378,2]
[353744750,1740005443492,-500.0,0.0001378,2]
[353744751,1740005443502,-536.48,0.0001378,2]
[353744752,1740005443511,-747.08,0.0001378,2]
[353744753,1740005443521,-500.0,0.0001378,2]
[353744754,1740005443531,-500.0,0.0001378,2]
[353744755,1740005443540,-500.0,0.0001378,2]
[353744756,1740005443550,-500.0,0.0001378,2]